[Event "Early-Titled-Tuesday-Blitz-October-10-2023"]
[Site "Chess.com"]
[Date "2023.10.10"]
[Round "7"]
[White "jcibarra"]
[Black "Cheer_Down"]
[Result "1-0"]
[WhiteElo "2908"]
[BlackElo "2500"]
[TimeControl "180+1"]
[EndTime "9:13:40 PDT"]
[Termination "jcibarra won by resignation"]

1. e4 {[%clk 0:03:00.9]} 1... c5 {[%clk 0:02:59.5]} 2. Nf3 {[%clk 0:02:58.4]}
2... d6 {[%clk 0:02:59.8]} 3. d4 {[%clk 0:02:58]} 3... cxd4 {[%clk 0:03:00.2]}
4. Nxd4 {[%clk 0:02:58.7]} 4... Nf6 {[%clk 0:03:00.6]} 5. Nc3 {[%clk 0:02:59.2]}
5... a6 {[%clk 0:03:00.7]} 6. g3 {[%clk 0:02:58.9]} 6... e5 {[%clk 0:03:00.3]}
7. Nb3 {[%clk 0:02:58.9]} 7... Be7 {[%clk 0:02:47.6]} 8. Bg5 {[%clk 0:02:58.8]}
8... Nbd7 {[%clk 0:02:35.9]} 9. a4 {[%clk 0:02:58.3]} 9... b6 {[%clk 0:02:34.8]}
10. Bc4 {[%clk 0:02:57.7]} 10... Bb7 {[%clk 0:02:34.2]} 11. Qd3 {[%clk
0:02:48.7]} 11... Qc7 {[%clk 0:02:24.2]} 12. O-O {[%clk 0:02:46.8]} 12... O-O
{[%clk 0:02:23.5]} 13. Rfd1 {[%clk 0:02:44.1]} 13... Rfc8 {[%clk 0:02:22.1]} 14.
Nd2 {[%clk 0:02:43.7]} 14... h6 {[%clk 0:02:14.3]} 15. Bxf6 {[%clk 0:02:43.7]}
15... Nxf6 {[%clk 0:02:14.5]} 16. Bb3 {[%clk 0:02:43.9]} 16... Qc5 {[%clk
0:01:43]} 17. Nc4 {[%clk 0:02:36.1]} 17... Bc6 {[%clk 0:01:01.5]} 18. Ne3 {[%clk
0:02:24.2]} 18... b5 {[%clk 0:01:01.8]} 19. axb5 {[%clk 0:02:16.6]} 19... axb5
{[%clk 0:01:02]} 20. Rxa8 {[%clk 0:02:12]} 20... Rxa8 {[%clk 0:01:01.6]} 21.
Ncd5 {[%clk 0:02:10.8]} 21... Bd8 {[%clk 0:00:58.2]} 22. Nxf6+ {[%clk
0:02:05.6]} 22... Bxf6 {[%clk 0:00:56.4]} 23. Bd5 {[%clk 0:02:06]} 23... Bg5
{[%clk 0:00:51.6]} 24. Bxc6 {[%clk 0:02:04.9]} 24... Qxc6 {[%clk 0:00:51.6]} 25.
Nd5 {[%clk 0:02:04.6]} 25... Ra4 {[%clk 0:00:45.2]} 26. c3 {[%clk 0:01:59.6]}
26... Bd8 {[%clk 0:00:35.7]} 27. b4 {[%clk 0:01:55]} 27... g6 {[%clk 0:00:34.4]}
28. h4 {[%clk 0:01:53.8]} 28... h5 {[%clk 0:00:34.2]} 29. Kg2 {[%clk 0:01:53.5]}
29... Ra2 {[%clk 0:00:32.6]} 30. Re1 {[%clk 0:01:42.8]} 30... Bb6 {[%clk
0:00:31.8]} 31. Ne7+ {[%clk 0:01:35]} 1-0

[Event "Early-Titled-Tuesday-Blitz-October-10-2023"]
[Site "Chess.com"]
[Date "2023.10.10"]
[Round "7"]
[White "ChessQueen"]
[Black "Masterbeaterr"]
[Result "1-0"]
[WhiteElo "2712"]
[BlackElo "2466"]
[TimeControl "180+1"]
[EndTime "9:13:44 PDT"]
[Termination "ChessQueen won by resignation"]

1. e4 {[%clk 0:03:00.9]} 1... e5 {[%clk 0:02:56.6]} 2. Nf3 {[%clk 0:03:00.3]}
2... Nc6 {[%clk 0:02:56]} 3. Bb5 {[%clk 0:03:00.1]} 3... a6 {[%clk 0:02:55.8]}
4. Ba4 {[%clk 0:03:00.2]} 4... Nf6 {[%clk 0:02:56.1]} 5. d4 {[%clk 0:03:00.2]}
5... exd4 {[%clk 0:02:55.8]} 6. O-O {[%clk 0:02:57.5]} 6... Be7 {[%clk
0:02:54.4]} 7. e5 {[%clk 0:02:57.6]} 7... Ne4 {[%clk 0:02:54.3]} 8. Nxd4 {[%clk
0:02:57.7]} 8... Nc5 {[%clk 0:02:54.2]} 9. Nf5 {[%clk 0:02:57.3]} 9... O-O
{[%clk 0:02:50.2]} 10. Qg4 {[%clk 0:02:36.8]} 10... g6 {[%clk 0:02:49.9]} 11.
Bxc6 {[%clk 0:02:30.8]} 11... dxc6 {[%clk 0:02:49]} 12. Nxe7+ {[%clk 0:02:29.9]}
12... Qxe7 {[%clk 0:02:48.5]} 13. Qg3 {[%clk 0:02:30.1]} 13... Bf5 {[%clk
0:02:36.6]} 14. Nc3 {[%clk 0:02:26.6]} 14... Rfe8 {[%clk 0:02:32.6]} 15. Bf4
{[%clk 0:02:16]} 15... Bxc2 {[%clk 0:02:29.8]} 16. Rfe1 {[%clk 0:02:07.6]} 16...
Rad8 {[%clk 0:02:15.1]} 17. Bg5 {[%clk 0:02:06.3]} 17... Qe6 {[%clk 0:02:15]}
18. Bxd8 {[%clk 0:02:02.8]} 18... Rxd8 {[%clk 0:02:15.9]} 19. Qh4 {[%clk
0:01:49.5]} 19... Rd2 {[%clk 0:02:11.8]} 20. h3 {[%clk 0:01:34.3]} 20... Qf5
{[%clk 0:01:47]} 21. Re3 {[%clk 0:01:25.1]} 21... Ne6 {[%clk 0:01:33.4]} 22.
Rae1 {[%clk 0:01:10]} 22... g5 {[%clk 0:01:23.7]} 23. Qg3 {[%clk 0:01:07.7]}
23... Nf4 {[%clk 0:01:20.3]} 24. e6 {[%clk 0:00:59.9]} 24... fxe6 {[%clk
0:01:16.6]} 25. Re5 {[%clk 0:00:58.4]} 25... Qf6 {[%clk 0:01:04.4]} 26. Rxg5+
{[%clk 0:00:56.8]} 26... Bg6 {[%clk 0:01:05]} 27. Ne4 {[%clk 0:00:51.7]} 1-0

[Event "Early-Titled-Tuesday-Blitz-October-10-2023"]
[Site "Chess.com"]
[Date "2023.10.10"]
[Round "7"]
[White "KamlaPasand"]
[Black "soumeow"]
[Result "1/2-1/2"]
[WhiteElo "2452"]
[BlackElo "2299"]
[TimeControl "180+1"]
[EndTime "9:14:01 PDT"]
[Termination "Game drawn by agreement"]

1. e4 {[%clk 0:02:00.8]} 1... c5 {[%clk 0:02:59.7]} 2. Nf3 {[%clk 0:02:01.2]}
2... Nc6 {[%clk 0:03:00.1]} 3. d4 {[%clk 0:02:02.1]} 3... cxd4 {[%clk 0:03:01]}
4. Nxd4 {[%clk 0:02:03]} 4... Nf6 {[%clk 0:03:01.4]} 5. Nc3 {[%clk 0:02:01.5]}
5... d6 {[%clk 0:03:01.7]} 6. f3 {[%clk 0:01:58.8]} 6... e5 {[%clk 0:03:00.7]}
7. Nb3 {[%clk 0:01:58.2]} 7... Be6 {[%clk 0:02:49]} 8. Nd5 {[%clk 0:01:55.3]}
8... h6 {[%clk 0:02:44.8]} 9. Be3 {[%clk 0:01:50.9]} 9... Be7 {[%clk 0:02:40.1]}
10. c4 {[%clk 0:01:48.5]} 10... O-O {[%clk 0:02:35.4]} 11. Bd3 {[%clk
0:01:47.5]} 11... Re8 {[%clk 0:02:28.5]} 12. O-O {[%clk 0:01:47.1]} 12... Bf8
{[%clk 0:02:28.6]} 13. Nd2 {[%clk 0:01:46.3]} 13... Bd7 {[%clk 0:02:19.4]} 14.
a3 {[%clk 0:01:45.8]} 14... Nxd5 {[%clk 0:02:17.7]} 15. exd5 {[%clk 0:01:45.1]}
15... Ne7 {[%clk 0:02:17.7]} 16. b4 {[%clk 0:01:45.5]} 16... b6 {[%clk
0:01:58.1]} 17. Qb3 {[%clk 0:01:44.8]} 17... Rb8 {[%clk 0:01:51.3]} 18. Rae1
{[%clk 0:01:42.9]} 18... f5 {[%clk 0:01:47.6]} 19. Qa2 {[%clk 0:01:39.5]} 19...
Kh8 {[%clk 0:01:31.3]} 20. c5 {[%clk 0:01:38.3]} 20... Nxd5 {[%clk 0:00:42.1]}
21. Qxd5 {[%clk 0:01:26.8]} 21... Be6 {[%clk 0:00:42.2]} 22. Qc6 {[%clk
0:01:25]} 22... Bd7 {[%clk 0:00:41.5]} 23. Qd5 {[%clk 0:00:47.8]} 23... Be6
{[%clk 0:00:41.6]} 1/2-1/2

[Event "Early-Titled-Tuesday-Blitz-October-10-2023"]
[Site "Chess.com"]
[Date "2023.10.10"]
[Round "7"]
[White "BeanScreen"]
[Black "Bilan_Danila"]
[Result "0-1"]
[WhiteElo "2715"]
[BlackElo "2600"]
[TimeControl "180+1"]
[EndTime "9:14:04 PDT"]
[Termination "Bilan_Danila won by checkmate"]

1. e4 {[%clk 0:03:00.9]} 1... c6 {[%clk 0:02:57.1]} 2. d4 {[%clk 0:03:00.8]}
2... d5 {[%clk 0:02:57.7]} 3. exd5 {[%clk 0:03:01.7]} 3... cxd5 {[%clk 0:02:58]}
4. Bd3 {[%clk 0:03:02.5]} 4... Nc6 {[%clk 0:02:58.4]} 5. c3 {[%clk 0:03:03.2]}
5... Qc7 {[%clk 0:02:58.8]} 6. h3 {[%clk 0:03:03.4]} 6... g6 {[%clk 0:02:54.9]}
7. Nf3 {[%clk 0:03:03.5]} 7... Bf5 {[%clk 0:02:54.9]} 8. O-O {[%clk 0:03:02.6]}
8... Nf6 {[%clk 0:02:54.6]} 9. Re1 {[%clk 0:03:01.2]} 9... e6 {[%clk 0:02:54.2]}
10. Bg5 {[%clk 0:03:00.5]} 10... Be7 {[%clk 0:02:51.1]} 11. Bf1 {[%clk
0:02:55.7]} 11... h5 {[%clk 0:02:43]} 12. Nbd2 {[%clk 0:02:53.8]} 12... O-O-O
{[%clk 0:02:31.5]} 13. a4 {[%clk 0:02:51.9]} 13... Ne4 {[%clk 0:02:14.6]} 14.
Bxe7 {[%clk 0:02:49]} 14... Qxe7 {[%clk 0:02:06.3]} 15. a5 {[%clk 0:02:48.6]}
15... g5 {[%clk 0:02:00.8]} 16. a6 {[%clk 0:02:47.7]} 16... g4 {[%clk
0:01:33.1]} 17. axb7+ {[%clk 0:02:46]} 17... Kb8 {[%clk 0:01:29.1]} 18. Ne5
{[%clk 0:02:36]} 18... Nxe5 {[%clk 0:01:20.4]} 19. dxe5 {[%clk 0:02:36.9]} 19...
gxh3 {[%clk 0:01:06.6]} 20. Qa4 {[%clk 0:02:33.5]} 20... h2+ {[%clk 0:00:40.5]}
21. Kh1 {[%clk 0:02:26.1]} 21... Nxf2+ {[%clk 0:00:40.8]} 22. Kxh2 {[%clk
0:02:26.5]} 22... Ng4+ {[%clk 0:00:38.4]} 23. Kg3 {[%clk 0:01:32.6]} 23... h4+
{[%clk 0:00:31.9]} 24. Kf4 {[%clk 0:01:32.5]} 24... Qxb7 {[%clk 0:00:24.5]} 25.
Ra3 {[%clk 0:01:32.7]} 25... Ka8 {[%clk 0:00:19.6]} 26. Rb3 {[%clk 0:01:31.9]}
26... Qc7 {[%clk 0:00:16.4]} 27. Bb5 {[%clk 0:01:27.8]} 27... Rc8 {[%clk
0:00:16.1]} 28. Ra1 {[%clk 0:01:26.8]} 28... Qxe5+ {[%clk 0:00:15.6]} 29. Kg5
{[%clk 0:01:08.7]} 29... Rcg8# {[%clk 0:00:15.1]} 0-1

[Event "Early-Titled-Tuesday-Blitz-October-10-2023"]
[Site "Chess.com"]
[Date "2023.10.10"]
[Round "7"]
[White "deribas12345"]
[Black "Efremov_Vlad"]
[Result "0-1"]
[WhiteElo "2580"]
[BlackElo "2370"]
[TimeControl "180+1"]
[EndTime "9:14:05 PDT"]
[Termination "Efremov_Vlad won by resignation"]

1. d4 {[%clk 0:03:00.9]} 1... Nf6 {[%clk 0:02:58.6]} 2. c4 {[%clk 0:03:00.5]}
2... e6 {[%clk 0:02:59]} 3. Nc3 {[%clk 0:03:00.8]} 3... Bb4 {[%clk 0:02:59.2]}
4. a3 {[%clk 0:03:01.2]} 4... Bxc3+ {[%clk 0:02:59.3]} 5. bxc3 {[%clk
0:03:02.1]} 5... O-O {[%clk 0:02:59.6]} 6. f3 {[%clk 0:03:02.6]} 6... c5 {[%clk
0:02:57.1]} 7. e4 {[%clk 0:03:02.7]} 7... Ne8 {[%clk 0:02:56.8]} 8. Bd3 {[%clk
0:03:00.6]} 8... Nc6 {[%clk 0:02:56.1]} 9. Ne2 {[%clk 0:02:59.6]} 9... b6 {[%clk
0:02:56.5]} 10. O-O {[%clk 0:02:59]} 10... Ba6 {[%clk 0:02:54.4]} 11. Qa4 {[%clk
0:02:57.2]} 11... Na5 {[%clk 0:02:52.8]} 12. f4 {[%clk 0:02:55.5]} 12... Nd6
{[%clk 0:02:49]} 13. e5 {[%clk 0:02:42.5]} 13... Bxc4 {[%clk 0:02:36.7]} 14.
Bxc4 {[%clk 0:02:34.7]} 14... Ndxc4 {[%clk 0:02:37.6]} 15. f5 {[%clk 0:02:32.6]}
15... exf5 {[%clk 0:02:29.5]} 16. Rxf5 {[%clk 0:02:31]} 16... d6 {[%clk
0:02:19.9]} 17. Qc2 {[%clk 0:01:32.9]} 17... cxd4 {[%clk 0:02:00]} 18. cxd4
{[%clk 0:01:16.9]} 18... dxe5 {[%clk 0:01:58]} 19. dxe5 {[%clk 0:01:16.4]} 19...
Rc8 {[%clk 0:01:51.2]} 20. Bg5 {[%clk 0:01:14.1]} 20... Qd7 {[%clk 0:01:40.3]}
21. Qe4 {[%clk 0:01:09.6]} 21... Rfe8 {[%clk 0:01:38.8]} 22. Bf6 {[%clk
0:01:05.4]} 22... Nd6 {[%clk 0:01:35.2]} 23. Qg4 {[%clk 0:00:38.6]} 23... Nxf5
{[%clk 0:01:33.4]} 24. Bxg7 {[%clk 0:00:38.2]} 24... Rc4 {[%clk 0:01:04.6]} 25.
Qh3 {[%clk 0:00:25]} 25... Kxg7 {[%clk 0:01:02.2]} 26. Ng3 {[%clk 0:00:24.5]}
26... Qd4+ {[%clk 0:01:01.7]} 0-1

[Event "Early-Titled-Tuesday-Blitz-October-10-2023"]
[Site "Chess.com"]
[Date "2023.10.10"]
[Round "7"]
[White "SirStrateg"]
[Black "LuisFSiles"]
[Result "1-0"]
[WhiteElo "2591"]
[BlackElo "2344"]
[TimeControl "180+1"]
[EndTime "9:14:13 PDT"]
[Termination "SirStrateg won on time"]

1. d4 {[%clk 0:03:00.9]} 1... Nf6 {[%clk 0:02:59.5]} 2. Bf4 {[%clk 0:03:00.3]}
2... g6 {[%clk 0:02:57]} 3. e3 {[%clk 0:02:59.3]} 3... Bg7 {[%clk 0:02:56.7]} 4.
h3 {[%clk 0:02:59.8]} 4... O-O {[%clk 0:02:56.2]} 5. Nf3 {[%clk 0:03:00.5]} 5...
d6 {[%clk 0:02:55.9]} 6. c3 {[%clk 0:03:01]} 6... c5 {[%clk 0:02:55.8]} 7. Nbd2
{[%clk 0:02:56.7]} 7... Nc6 {[%clk 0:02:55.8]} 8. Be2 {[%clk 0:02:55.6]} 8...
Be6 {[%clk 0:02:54.8]} 9. O-O {[%clk 0:02:52.6]} 9... Qb6 {[%clk 0:02:54.5]} 10.
Qb1 {[%clk 0:02:46.8]} 10... cxd4 {[%clk 0:02:37.8]} 11. cxd4 {[%clk 0:02:40.1]}
11... Bf5 {[%clk 0:02:16.8]} 12. Bd3 {[%clk 0:02:40.4]} 12... Bxd3 {[%clk
0:02:13.9]} 13. Qxd3 {[%clk 0:02:41.3]} 13... Rfc8 {[%clk 0:01:57.7]} 14. a3
{[%clk 0:02:27.4]} 14... a5 {[%clk 0:01:41.8]} 15. e4 {[%clk 0:02:22.5]} 15...
d5 {[%clk 0:01:26.1]} 16. e5 {[%clk 0:02:20.4]} 16... Ne4 {[%clk 0:01:26.3]} 17.
Nxe4 {[%clk 0:02:18.4]} 17... dxe4 {[%clk 0:01:26.3]} 18. Qxe4 {[%clk
0:02:18.9]} 18... Qxb2 {[%clk 0:01:06.8]} 19. d5 {[%clk 0:02:16.9]} 19... Nd8
{[%clk 0:00:54.1]} 20. Rfb1 {[%clk 0:02:07]} 20... Qc2 {[%clk 0:00:43.7]} 21.
Qe1 {[%clk 0:01:54.5]} 21... a4 {[%clk 0:00:19.7]} 22. Bg3 {[%clk 0:01:51.4]}
22... Bh6 {[%clk 0:00:15.9]} 23. Rd1 {[%clk 0:01:48.1]} 23... Rc4 {[%clk
0:00:15.2]} 24. Qf1 {[%clk 0:01:37.9]} 24... Rac8 {[%clk 0:00:14.2]} 25. d6
{[%clk 0:01:30]} 25... exd6 {[%clk 0:00:14]} 26. exd6 {[%clk 0:01:30]} 26... Bg7
{[%clk 0:00:13.5]} 27. Be5 {[%clk 0:01:24.2]} 27... Qf5 {[%clk 0:00:09.7]} 28.
Bxg7 {[%clk 0:01:22.5]} 28... Kxg7 {[%clk 0:00:10.6]} 29. Rac1 {[%clk
0:01:21.2]} 29... Rxc1 {[%clk 0:00:05.6]} 30. Rxc1 {[%clk 0:01:21.6]} 30... Rc6
{[%clk 0:00:05.9]} 31. Nd4 {[%clk 0:01:16.3]} 1-0

[Event "Early-Titled-Tuesday-Blitz-October-10-2023"]
[Site "Chess.com"]
[Date "2023.10.10"]
[Round "7"]
[White "almaguerjm"]
[Black "Pawnpusher1245"]
[Result "0-1"]
[WhiteElo "2506"]
[BlackElo "2401"]
[TimeControl "180+1"]
[EndTime "9:14:16 PDT"]
[Termination "Pawnpusher1245 won by resignation"]

1. e4 {[%clk 0:02:56]} 1... e6 {[%clk 0:02:57.8]} 2. d3 {[%clk 0:02:54.5]} 2...
d5 {[%clk 0:02:57.6]} 3. Nd2 {[%clk 0:02:55.4]} 3... Nc6 {[%clk 0:02:53.4]} 4.
g3 {[%clk 0:02:54.3]} 4... dxe4 {[%clk 0:02:52.1]} 5. dxe4 {[%clk 0:02:55.2]}
5... Bc5 {[%clk 0:02:50]} 6. Bg2 {[%clk 0:02:54.4]} 6... Nf6 {[%clk 0:02:49.5]}
7. Ngf3 {[%clk 0:02:54.2]} 7... O-O {[%clk 0:02:47]} 8. O-O {[%clk 0:02:52.1]}
8... e5 {[%clk 0:02:46]} 9. Nb3 {[%clk 0:02:47.5]} 9... Bb6 {[%clk 0:02:40.3]}
10. Qxd8 {[%clk 0:02:41.4]} 10... Rxd8 {[%clk 0:02:39.5]} 11. Bg5 {[%clk
0:02:40.9]} 11... Be6 {[%clk 0:02:19.8]} 12. Bxf6 {[%clk 0:02:23.6]} 12... gxf6
{[%clk 0:02:19.4]} 13. Nh4 {[%clk 0:02:23.2]} 13... Nb4 {[%clk 0:02:06.7]} 14.
c3 {[%clk 0:02:17.1]} 14... Nd3 {[%clk 0:02:03.6]} 15. Rab1 {[%clk 0:02:09.8]}
15... a5 {[%clk 0:01:55.7]} 16. Nc1 {[%clk 0:01:25.9]} 16... Nxc1 {[%clk
0:01:52.2]} 17. Rbxc1 {[%clk 0:01:25.9]} 17... Rd2 {[%clk 0:01:45.9]} 18. c4
{[%clk 0:01:14.5]} 18... Bc5 {[%clk 0:01:34]} 19. b3 {[%clk 0:01:09.4]} 19...
Rad8 {[%clk 0:01:28.3]} 20. Nf5 {[%clk 0:01:02.1]} 20... Bxf5 {[%clk 0:01:12]}
21. exf5 {[%clk 0:01:03]} 21... c6 {[%clk 0:01:12.2]} 22. Bf3 {[%clk 0:00:56.7]}
22... Rxa2 {[%clk 0:01:08.7]} 23. Rcd1 {[%clk 0:00:56.9]} 23... Rxd1 {[%clk
0:00:53.7]} 24. Bxd1 {[%clk 0:00:57.8]} 24... b5 {[%clk 0:00:53.8]} 25. cxb5
{[%clk 0:00:55.1]} 25... cxb5 {[%clk 0:00:53.9]} 26. Kg2 {[%clk 0:00:49]} 26...
a4 {[%clk 0:00:53.1]} 27. bxa4 {[%clk 0:00:48.9]} 27... bxa4 {[%clk 0:00:54]}
28. Kf3 {[%clk 0:00:49.3]} 28... a3 {[%clk 0:00:51]} 29. Be2 {[%clk 0:00:46.7]}
29... Rb2 {[%clk 0:00:45.8]} 30. Rc1 {[%clk 0:00:39.8]} 30... a2 {[%clk
0:00:40.8]} 31. Ra1 {[%clk 0:00:39]} 31... e4+ {[%clk 0:00:40.1]} 0-1

[Event "Early-Titled-Tuesday-Blitz-October-10-2023"]
[Site "Chess.com"]
[Date "2023.10.10"]
[Round "7"]
[White "cristiano78"]
[Black "RamonManon0g"]
[Result "0-1"]
[WhiteElo "2245"]
[BlackElo "2328"]
[TimeControl "180+1"]
[EndTime "9:14:21 PDT"]
[Termination "RamonManon0g won by resignation"]

1. d4 {[%clk 0:03:00.4]} 1... Nf6 {[%clk 0:02:59.7]} 2. c3 {[%clk 0:03:00.2]}
2... g6 {[%clk 0:03:00.6]} 3. Nf3 {[%clk 0:02:59.2]} 3... d6 {[%clk 0:03:00.1]}
4. Bf4 {[%clk 0:02:59.7]} 4... Bg7 {[%clk 0:03:00.6]} 5. h3 {[%clk 0:02:59.2]}
5... O-O {[%clk 0:03:01.5]} 6. e3 {[%clk 0:02:58.7]} 6... Nc6 {[%clk 0:02:59.5]}
7. Nbd2 {[%clk 0:02:58.4]} 7... Nd7 {[%clk 0:03:00]} 8. Bg3 {[%clk 0:02:56.4]}
8... e5 {[%clk 0:03:00.6]} 9. Be2 {[%clk 0:02:52]} 9... f5 {[%clk 0:03:00.8]}
10. O-O {[%clk 0:02:50.2]} 10... g5 {[%clk 0:02:55.1]} 11. dxe5 {[%clk
0:02:49.1]} 11... Ndxe5 {[%clk 0:02:50.9]} 12. Nxe5 {[%clk 0:02:48.7]} 12...
Nxe5 {[%clk 0:02:51.3]} 13. Nf3 {[%clk 0:02:44.4]} 13... f4 {[%clk 0:02:49.1]}
14. exf4 {[%clk 0:02:43.4]} 14... gxf4 {[%clk 0:02:50]} 15. Bh2 {[%clk
0:02:43.1]} 15... Kh8 {[%clk 0:02:46.6]} 16. Nxe5 {[%clk 0:02:41.9]} 16... Bxe5
{[%clk 0:02:46.5]} 17. Bg4 {[%clk 0:02:39.3]} 17... Rg8 {[%clk 0:02:44.8]} 18.
Bxc8 {[%clk 0:02:38.7]} 18... Qxc8 {[%clk 0:02:45.2]} 19. Qf3 {[%clk 0:02:39.1]}
19... Qf5 {[%clk 0:02:42.6]} 20. Rfe1 {[%clk 0:02:38.3]} 20... Rg7 {[%clk
0:02:40.7]} 21. g4 {[%clk 0:02:27.8]} 21... Qg5 {[%clk 0:02:32.3]} 22. Re4
{[%clk 0:02:16.9]} 22... Rf8 {[%clk 0:02:29.4]} 23. Rae1 {[%clk 0:02:10.8]}
23... h5 {[%clk 0:02:28.9]} 24. Kf1 {[%clk 0:01:40.7]} 24... hxg4 {[%clk
0:02:27.3]} 25. hxg4 {[%clk 0:01:40.8]} 25... Qxg4 {[%clk 0:01:57.3]} 26. Ke2
{[%clk 0:01:39.2]} 26... Qf5 {[%clk 0:01:37.5]} 27. Kd2 {[%clk 0:01:36.5]} 27...
Rh7 {[%clk 0:01:30.7]} 28. Rh1 {[%clk 0:01:29.9]} 28... Rff7 {[%clk 0:01:21.5]}
29. Bg1 {[%clk 0:01:20.8]} 29... Rxh1 {[%clk 0:01:13.9]} 30. Qxh1+ {[%clk
0:01:20.4]} 30... Rh7 {[%clk 0:01:14.8]} 31. Qf3 {[%clk 0:01:18.5]} 31... Rh3
{[%clk 0:01:11.3]} 32. Qe2 {[%clk 0:01:16.5]} 32... Rh1 {[%clk 0:01:04.3]} 33.
Qe1 {[%clk 0:00:55.9]} 33... Qg5 {[%clk 0:00:42.1]} 0-1

[Event "Early-Titled-Tuesday-Blitz-October-10-2023"]
[Site "Chess.com"]
[Date "2023.10.10"]
[Round "7"]
[White "Smiechu"]
[Black "kingofthenil"]
[Result "1-0"]
[WhiteElo "2502"]
[BlackElo "2702"]
[TimeControl "180+1"]
[EndTime "9:14:27 PDT"]
[Termination "Smiechu won by resignation"]

1. e4 {[%clk 0:03:00.9]} 1... g6 {[%clk 0:03:00.9]} 2. d4 {[%clk 0:03:00.5]}
2... Bg7 {[%clk 0:03:01.8]} 3. Nc3 {[%clk 0:03:00.9]} 3... c5 {[%clk 0:02:52.3]}
4. Nf3 {[%clk 0:02:59.8]} 4... cxd4 {[%clk 0:02:50.9]} 5. Nxd4 {[%clk
0:02:59.6]} 5... d6 {[%clk 0:02:49.9]} 6. Be3 {[%clk 0:02:59.3]} 6... Nf6 {[%clk
0:02:50.4]} 7. f3 {[%clk 0:02:59.3]} 7... a6 {[%clk 0:02:38.2]} 8. Qd2 {[%clk
0:02:58.9]} 8... b5 {[%clk 0:02:21.7]} 9. h4 {[%clk 0:02:53]} 9... h5 {[%clk
0:02:18.8]} 10. O-O-O {[%clk 0:02:48.8]} 10... Bb7 {[%clk 0:02:15.2]} 11. Kb1
{[%clk 0:02:32.6]} 11... Nbd7 {[%clk 0:02:01.7]} 12. Be2 {[%clk 0:02:23.4]}
12... Rc8 {[%clk 0:01:42.5]} 13. g4 {[%clk 0:02:21.7]} 13... Ne5 {[%clk
0:01:39.6]} 14. g5 {[%clk 0:02:10.9]} 14... Nfd7 {[%clk 0:01:37]} 15. f4 {[%clk
0:02:10.9]} 15... Nc4 {[%clk 0:01:34.2]} 16. Bxc4 {[%clk 0:02:10.5]} 16... Rxc4
{[%clk 0:01:35.1]} 17. f5 {[%clk 0:02:10.1]} 17... Qc8 {[%clk 0:01:24.4]} 18. f6
{[%clk 0:01:56.2]} 18... exf6 {[%clk 0:01:09.1]} 19. Ndxb5 {[%clk 0:01:36.8]}
19... axb5 {[%clk 0:00:54.4]} 20. Nxb5 {[%clk 0:01:36.9]} 20... Bf8 {[%clk
0:00:25.9]} 21. Bf4 {[%clk 0:01:36.9]} 21... Qc6 {[%clk 0:00:15.1]} 22. Nxd6+
{[%clk 0:01:33.1]} 22... Bxd6 {[%clk 0:00:14.7]} 23. Bxd6 {[%clk 0:01:34]} 23...
Rxe4 {[%clk 0:00:13.6]} 24. Rhe1 {[%clk 0:01:28]} 24... Re6 {[%clk 0:00:03.7]}
25. gxf6 {[%clk 0:01:17]} 25... Nxf6 {[%clk 0:00:03.3]} 26. Qd4 {[%clk
0:01:09.4]} 26... Rh7 {[%clk 0:00:01.4]} 27. Rxe6+ {[%clk 0:01:07.2]} 27... fxe6
{[%clk 0:00:02.3]} 28. Qxf6 {[%clk 0:01:06.6]} 28... Rf7 {[%clk 0:00:02.5]} 29.
Qxe6+ {[%clk 0:01:04.8]} 29... Kd8 {[%clk 0:00:02.2]} 30. Qxf7 {[%clk
0:01:03.7]} 30... Qd5 {[%clk 0:00:01.2]} 1-0

[Event "Early-Titled-Tuesday-Blitz-October-10-2023"]
[Site "Chess.com"]
[Date "2023.10.10"]
[Round "7"]
[White "Mikhail_Golubev"]
[Black "Juicy_Fork"]
[Result "1-0"]
[WhiteElo "2610"]
[BlackElo "2463"]
[TimeControl "180+1"]
[EndTime "9:14:30 PDT"]
[Termination "Mikhail_Golubev won on time"]

1. e4 {[%clk 0:03:00.9]} 1... e5 {[%clk 0:02:58.2]} 2. Nf3 {[%clk 0:03:00.8]}
2... Nc6 {[%clk 0:02:58.3]} 3. Bc4 {[%clk 0:03:01.3]} 3... Nf6 {[%clk
0:02:57.8]} 4. Ng5 {[%clk 0:03:00.2]} 4... d5 {[%clk 0:02:57.5]} 5. exd5 {[%clk
0:03:00.7]} 5... Na5 {[%clk 0:02:57.7]} 6. Bb5+ {[%clk 0:03:01.1]} 6... c6
{[%clk 0:02:57.6]} 7. dxc6 {[%clk 0:03:01.7]} 7... bxc6 {[%clk 0:02:58.5]} 8.
Bd3 {[%clk 0:03:01.6]} 8... h6 {[%clk 0:02:56.1]} 9. Ne4 {[%clk 0:03:00.4]} 9...
Ng4 {[%clk 0:02:55]} 10. h3 {[%clk 0:02:43.8]} 10... Nf6 {[%clk 0:02:35]} 11.
O-O {[%clk 0:02:42.4]} 11... Be7 {[%clk 0:02:30.1]} 12. Nxf6+ {[%clk 0:02:39.2]}
12... Bxf6 {[%clk 0:02:31]} 13. Nc3 {[%clk 0:02:35.2]} 13... O-O {[%clk
0:02:29.7]} 14. Qf3 {[%clk 0:02:34.8]} 14... Be6 {[%clk 0:02:14.4]} 15. b3
{[%clk 0:02:24.9]} 15... Bd5 {[%clk 0:02:05.5]} 16. Be4 {[%clk 0:02:06.8]} 16...
Bxe4 {[%clk 0:01:51.7]} 17. Nxe4 {[%clk 0:01:54.6]} 17... Be7 {[%clk 0:01:50.3]}
18. Qf5 {[%clk 0:01:49.2]} 18... Qc7 {[%clk 0:01:26.7]} 19. d3 {[%clk
0:01:37.7]} 19... g6 {[%clk 0:01:18.3]} 20. Nf6+ {[%clk 0:01:12.3]} 20... Kg7
{[%clk 0:00:54.9]} 21. Qd7 {[%clk 0:01:12]} 21... Qxd7 {[%clk 0:00:50.6]} 22.
Nxd7 {[%clk 0:01:12.9]} 22... Rfe8 {[%clk 0:00:44.2]} 23. Bb2 {[%clk 0:01:12.6]}
23... Bd6 {[%clk 0:00:20.9]} 24. f4 {[%clk 0:01:07.6]} 24... f6 {[%clk
0:00:18.2]} 25. Nxf6 {[%clk 0:01:01.6]} 25... Bc5+ {[%clk 0:00:08.2]} 26. d4
{[%clk 0:01:01.6]} 26... Kxf6 {[%clk 0:00:05.1]} 27. dxc5 {[%clk 0:00:58.3]} 1-0